bitfinex/quotes_ETHUSD_20241216
["timestamp","ask_amount","ask_price","bid_price","bid_amount"]
[1734320261714,3.34159,3949.8,3948.9,0.1625327]
[1734320262819,0.8098,3949.8,3948.9,0.1625327]
[1734320264808,0.8098,3949.8,3948.9,2.6948727]
[1734320266592,0.8098,3949.8,3948.9,0.1625327]
[1734320266795,0.28874944,3949.7,3948.9,0.1625327]
[1734320267590,0.7702,3949.6,3948.9,0.1625327]
[1734320272896,0.76106059,3949.6,3948.9,0.1625327]
[1734320273287,3.2245515,3949.6,3948.9,0.1625327]
[1734320273502,2.82057944,3949.7,3948.9,0.1625327]
[1734320273503,0.86813657,3949.5,3948.9,0.1625327]
[1734320273682,0.47429139,3949.4,3948.9,0.1625327]
[1734320273886,0.28874944,3949.7,3949.0,2.53227]
[1734320274181,0.8689786,3949.6,3949.0,2.53227]
[1734320274395,0.28874944,3949.7,3949.0,2.53227]
[1734320275107,0.86895177,3949.6,3949.0,2.53227]
[1734320275274,1.34294732,3949.7,3949.0,2.53227]
[1734320275472,0.86916099,3949.6,3949.0,2.53227]
[1734320275900,1.62566099,3949.6,3949.0,2.53227]
[1734320276110,0.7565,3949.6,3949.0,2.53227]
[1734320281519,2.10839576,3950.1,3949.1,0.8313]
[1734320281520,1.05419788,3950.1,3949.1,0.8313]
[1734320281677,1.05419788,3950.3,3949.9,2.5317]
[1734320281894,0.86954721,3950.2,3949.9,2.5317]
[1734320282103,0.8165,3950.4,3949.9,2.5317]
[1734320282104,1.87069788,3950.4,3949.9,2.5317]
[1734320282317,0.86961439,3950.3,3949.9,2.5317]
[1734320282502,1.87069788,3950.4,3949.9,2.5317]
[1734320282708,0.86969426,3950.3,3949.9,2.5317]
[1734320283061,0.86969426,3950.3,3949.6,2.53185]
[1734320283236,1.48636678,3950.3,3949.3,2.53206]
[1734320283397,2.17412867,3950.2,3949.3,2.53206]
[1734320283602,2.17412867,3950.2,3949.0,2.53223]
[1734320283603,0.8289,3950.0,3949.0,2.53223]
[1734320283934,4.05720243,3950.0,3948.9,0.1625327]
[1734320284133,1.88309788,3949.8,3948.9,0.1625327]
[1734320284319,2.1739458,3949.7,3948.9,0.1625327]
[1734320284641,3.63367983,3949.6,3948.9,0.1625327]
[1734320284807,2.17378216,3949.5,3948.9,0.1625327]
[1734320285008,1.05419788,3949.7,3948.9,0.1625327]
[1734320285197,2.17373318,3949.6,3948.9,0.1625327]
[1734320285396,1.05419788,3949.7,3948.9,0.1625327]
[1734320285591,2.52015792,3949.6,3948.9,0.1625327]
[1734320285796,0.34643947,3949.6,3948.9,0.1625327]
[1734320287605,1.88309788,3949.8,3948.9,0.1625327]
[1734320287812,2.17371072,3949.7,3948.9,0.1625327]
[1734320288048,0.86948429,3949.6,3948.9,0.1625327]
[1734320288219,1.88309788,3949.8,3948.9,0.1625327]
[1734320288422,2.1736621,3949.7,3948.9,0.1625327]
[1734320288607,0.405676,3949.6,3948.9,0.1625327]
[1734320288939,1.88309788,3949.8,3948.9,0.1625327]
[1734320288940,1.05419788,3949.7,3948.9,0.1625327]
[1734320289092,0.8289,3949.8,3948.9,0.1625327]
[1734320289093,3.22776474,3949.6,3948.9,0.1625327]
[1734320289322,0.86941257,3949.5,3948.9,0.1625327]
[1734320289527,0.27525104,3949.5,3948.9,0.1625327]
[1734320290170,1.05419788,3949.7,3948.9,0.1625327]
[1734320290332,2.172475,3949.6,3948.9,0.1625327]
[1734320292169,3.22667288,3949.6,3948.9,0.1625327]
[1734320292369,2.172475,3949.5,3948.9,0.1625327]
[1734320292726,0.86899,3949.5,3948.9,0.1625327]
[1734320292928,1.30232847,3949.5,3948.9,0.1625327]
[1734320293153,0.86943124,3949.4,3948.9,0.1625327]
[1734320293650,0.43333847,3949.5,3948.9,0.1625327]
[1734320293852,1.05419788,3949.7,3948.9,0.1625327]
[1734320294076,1.05419788,3949.8,3949.2,0.8232]
[1734320294236,1.60338888,3950.0,3949.2,0.8232]
[1734320294574,2.17386695,3949.9,3949.2,0.8232]
[1734320294734,2.31596684,3950.0,3949.2,3.35534]
[1734320294934,0.86957209,3949.9,3949.2,3.35534]
[1734320295557,0.86957209,3949.9,3949.2,0.8232]
[1734320295961,2.17409176,3949.9,3949.2,0.8232]
[1734320296276,0.86957209,3949.8,3949.2,0.8232]
[1734320296442,0.93975954,3949.9,3949.2,0.8232]
[1734320296776,1.60338888,3950.0,3949.2,0.8232]
[1734320296777,1.60338888,3950.0,3949.2,3.35533]
[1734320296977,0.8696786,3949.9,3949.3,2.53208]
[1734320297289,0.549191,3950.0,3949.2,0.8232]
[1734320297426,0.549191,3950.0,3948.9,0.1625327]
[1734320297427,0.549191,3950.0,3949.9,2.5317]
[1734320297626,0.549191,3950.0,3949.9,3.3473]
[1734320298378,0.549191,3950.0,3949.9,0.8156]
[1734320298873,0.549191,3950.0,3949.5,2.5319]
[1734320299029,0.549191,3950.0,3949.6,0.8156]
[1734320300684,0.549191,3950.0,3949.8,2.53175]
[1734320301146,0.549191,3950.0,3949.8,2.866485]
[1734320301864,0.549191,3950.0,3949.9,2.5317]
[1734320304493,0.549191,3950.0,3949.7,2.53183]
[1734320306519,0.549191,3950.0,3949.6,0.8156]
[1734320306661,0.549191,3950.0,3949.8,2.53176]
[1734320308474,0.549191,3950.0,3949.9,2.5317]
[1734320308675,0.549191,3950.0,3949.9,3.3618]
[1734320312223,1e-06,3950.0,3949.9,3.3618]
[1734320312524,1e-06,3950.0,3949.9,5.72086524]
[1734320313099,1e-06,3950.0,3949.9,6.77875442]
[1734320313428,1e-06,3950.0,3949.9,7.67687898]
[1734320313982,1e-06,3950.0,3949.9,6.61943518]
[1734320314306,1e-06,3950.0,3949.9,7.67687898]
[1734320314924,1e-06,3950.0,3949.9,6.61943518]
[1734320315095,1e-06,3950.0,3949.9,4.26036994]
[1734320315654,1e-06,3950.0,3949.9,3.3618]
[1734320315824,1e-06,3950.0,3949.9,2.5317]
[1734320317005,1e-06,3950.0,3949.9,3.2881]
[1734320321408,1e-06,3950.0,3949.9,2.5317]
[1734320321602,1e-06,3950.0,3949.6,3.28824]
[1734320321916,1e-06,3950.0,3949.4,2.53202]
[1734320321917,0.775101,3950.0,3949.4,2.53202]
[1734320322115,0.775101,3950.0,3949.1,0.7564]
[1734320322314,0.775101,3950.0,3949.1,1.10152327]
[1734320322528,0.775101,3950.0,3949.5,2.53195]
[1734320322919,0.775101,3950.0,3949.6,2.53188]
[1734320323306,0.775101,3950.0,3948.9,0.9361327]
[1734320323508,0.775101,3950.0,3949.3,2.53205]
[1734320323828,0.775101,3950.0,3949.5,2.53196]
[1734320330386,0.775101,3950.0,3948.9,0.1625327]
[1734320330387,2.53181,3949.8,3948.9,0.1625327]
[1734320330703,2.53177,3949.8,3948.9,0.1625327]
[1734320330877,0.8233,3949.6,3948.9,0.1625327]
[1734320331791,3.35522,3949.6,3948.9,0.1625327]
[1734320331950,2.53206,3949.4,3948.9,0.1625327]
[1734320332150,0.7999,3949.3,3948.9,0.1625327]
[1734320336389,0.7931903,3949.3,3948.9,0.1625327]
[1734320336586,0.33252203,3949.2,3948.9,0.1625327]
[1734320339292,0.8008,3949.1,3948.9,0.1625327]
[1734320348588,0.821,3949.9,3948.9,0.1625327]
[1734320348785,2.53178,3949.8,3948.9,0.1625327]
[1734320349502,2.53185,3949.7,3948.9,0.1625327]
[1734320349706,0.335285,3949.6,3948.9,0.1625327]
[1734320349916,0.821,3949.9,3948.9,0.1625327]
[1734320350116,0.821,3949.9,3949.1,2.53219]
[1734320350289,0.821,3949.9,3948.9,0.1625327]
[1734320350290,2.07769443,3949.6,3948.9,0.1625327]
[1734320350630,0.821,3949.5,3948.9,0.1625327]
[1734320350830,2.53205,3949.4,3948.9,0.1625327]
[1734320350999,0.54307444,3949.3,3948.9,0.1625327]
[1734320351929,2.53204,3949.4,3948.9,0.1625327]
[1734320354298,0.821,3949.5,3948.9,0.1625327]
[1734320354299,2.53209,3949.3,3948.9,0.1625327]
[1734320355211,3.35296,3949.5,3948.9,0.1625327]
[1734320355441,0.335296,3949.4,3948.9,0.1625327]
[1734320355811,0.821,3949.5,3948.9,0.1625327]
[1734320356027,0.7815,3949.9,3949.0,0.7794]
[1734320357336,0.7815,3949.9,3949.1,2.53222]
[1734320357698,0.7815,3949.9,3949.0,0.7794]
[1734320358335,1.1128151,3949.9,3949.0,0.7794]
[1734320359411,1e-06,3950.0,3949.0,0.7794]
[1734320359828,1e-06,3950.0,3949.0,3.31167]
[1734320361221,1e-06,3950.0,3949.0,0.7794]
[1734320362142,2.531651,3950.0,3949.0,0.7794]
[1734320362348,2.531651,3950.0,3947.8,1.0574438]
[1734320362349,2.53321,3947.6,3947.4,0.12957313]
[1734320362714,2.53346,3947.2,3946.6,0.7854]
[1734320362918,2.07769443,3947.7,3946.6,0.7854]
[1734320363142,2.53337,3947.3,3945.6,0.7854]
[1734320363346,2.07769443,3947.7,3945.2,1.0574438]
[1734320363347,4.61135443,3946.9,3945.2,0.7854]
[1734320363503,2.53398,3946.4,3945.2,0.7854]
[1734320363709,2.07769443,3946.9,3945.2,2.13367927]
[1734320365019,2.53387,3946.6,3945.2,2.13367927]
[1734320365219,2.53367,3946.9,3945.2,2.13367927]
[1734320365718,2.53367,3946.9,3945.6,2.53445]
[1734320366061,2.53367,3946.9,3945.7,0.253445]
[1734320366416,0.8281,3947.1,3945.7,0.253445]
[1734320366744,0.8281,3947.1,3945.3,0.7854]
[1734320367066,0.8281,3947.1,3945.9,2.53426]
[1734320368384,2.07769443,3947.3,3945.6,2.53446]
[1734320368521,2.07769443,3947.3,3945.2,1.34827927]
[1734320368721,3.36137,3947.5,3945.7,0.7854]
[1734320368722,0.8281,3947.5,3945.7,0.7854]
[1734320368953,2.07769443,3947.3,3945.2,1.34827927]
[1734320369219,2.53344,3947.2,3945.8,2.53432]
[1734320369477,2.07769443,3947.3,3945.2,1.34827927]
[1734320369478,2.07769443,3947.3,3946.1,2.53414]
[1734320370176,2.07769443,3947.3,3946.2,2.53406]
[1734320370323,2.07769443,3947.3,3945.9,0.7854]
[1734320370324,2.07769443,3947.3,3946.3,2.534]
[1734320370768,0.8281,3947.5,3946.3,2.534]
[1734320370972,0.8281,3947.5,3946.5,2.53388]
[1734320372238,0.8281,3947.5,3945.9,0.7854]
[1734320372497,1.11867944,3947.5,3946.5,2.53383]
[1734320372659,1.11867944,3947.5,3946.6,2.53381]
[1734320374301,2.86589443,3948.1,3946.8,3.36427]
[1734320374644,3.33959,3947.6,3946.2,0.8194]
[1734320374992,3.33959,3947.6,3946.3,2.53397]
[1734320375193,2.53325,3947.5,3946.2,0.8194]
[1734320375393,0.54173444,3947.4,3946.2,0.8194]
[1734320375741,0.54173444,3947.4,3946.3,2.534]
[1734320375957,0.54173444,3947.4,3946.4,2.53389]
[1734320376695,0.54173444,3947.4,3946.2,0.8194]
[1734320377190,3.33961,3947.6,3946.2,0.8194]
[1734320377566,3.33961,3947.6,3946.3,2.53401]
[1734320378999,3.32217,3947.5,3946.1,2.53414]
[1734320379978,0.7889,3947.5,3946.4,2.53392]
[1734320381098,0.7889,3947.5,3946.3,0.8268]
[1734320381251,0.53997744,3947.4,3946.3,0.8268]
[1734320381440,0.53997744,3947.4,3946.4,2.53394]
[1734320382384,0.7889,3947.5,3946.4,2.53394]
[1734320383190,0.7889,3947.5,3946.3,0.8268]
[1734320383426,0.7889,3947.5,3946.5,2.53387]
[1734320383978,0.7889,3947.5,3946.6,2.5338]
[1734320384178,1.32886544,3947.5,3946.6,2.5338]
[1734320385027,1.32886544,3947.5,3946.3,3.36077]
[1734320385208,1.32886544,3947.5,3946.4,2.53394]
[1734320385425,1.32886544,3947.5,3946.5,2.53388]
[1734320385580,0.13288654,3947.4,3946.5,2.53388]
[1734320386422,0.13288654,3947.4,3946.3,0.8268]
[1734320386575,0.13288654,3947.4,3946.4,2.53394]
[1734320386774,0.13288654,3947.4,3946.3,0.8268]
[1734320386775,0.13288654,3947.4,3946.5,2.53388]
[1734320390191,0.13288654,3947.4,3946.9,2.53362]
[1734320390392,0.13288654,3947.4,3946.3,0.8268]
[1734320390594,0.7889,3947.5,3946.6,2.53376]
[1734320391824,0.7889,3947.5,3946.8,2.53368]
[1734320392490,0.7889,3947.5,3946.3,0.8268]
[1734320392713,0.7889,3947.5,3947.0,2.53356]
[1734320393228,0.7889,3947.5,3946.8,2.53368]
[1734320394494,0.7889,3947.5,3946.5,2.53382]
[1734320395205,0.7889,3947.5,3946.3,3.36081]
[1734320395843,0.7889,3947.5,3946.3,0.8268]
[1734320396014,0.7889,3947.5,3946.4,2.53393]
[1734320396415,0.7889,3947.5,3946.6,2.53382]
[1734320396631,1.07555944,3947.5,3946.6,2.53382]
[1734320397209,1.07555944,3947.5,3946.3,0.8268]
[1734320397547,1.07555944,3947.5,3946.4,2.53395]
[1734320400030,0.8067,3947.4,3946.3,2.53401]
[1734320400234,0.36266094,3947.3,3946.3,2.53401]
[1734320400821,0.8096,3947.1,3945.6,0.7646]
[1734320401253,0.36266094,3947.3,3945.6,0.7646]
[1734320401254,0.8096,3946.8,3945.7,2.5344]
[1734320401454,1.143923,3946.8,3945.7,2.5344]
[1734320401833,1.143923,3946.8,3945.8,2.53433]
[1734320402013,0.8096,3946.8,3945.8,2.53433]
[1734320402655,3.3433,3946.8,3945.3,1.9942212]
[1734320403000,3.3433,3946.8,3945.6,2.53446]
[1734320403162,3.3433,3946.8,3945.3,1.9942212]
[1734320403163,0.8096,3946.8,3945.3,1.9942212]
[1734320403372,0.8096,3946.8,3945.8,2.53432]
[1734320403570,0.8096,3946.8,3945.3,1.9942212]
[1734320403810,0.8096,3946.8,3945.7,2.5344]
[1734320404815,0.8096,3946.8,3945.8,2.53433]
[1734320406598,0.8096,3946.8,3945.5,1.0574438]
[1734320406812,0.8233,3946.7,3945.4,0.5586335]
[1734320407016,0.8233,3946.7,3945.6,2.53446]
[1734320407222,0.8233,3946.7,3945.3,0.7646]
[1734320407223,0.8233,3946.7,3945.3,1.8220438]
[1734320407408,0.8233,3946.7,3945.7,2.53434]
[1734320408239,1.8709563,3946.7,3945.5,2.53452]
[1734320408397,1.8709563,3946.7,3945.3,1.8220438]
[1734320408398,0.8173,3946.5,3945.3,4.3566838]
[1734320408735,3.74519384,3946.6,3945.2,3.5921638]
[1734320408736,0.8173,3946.4,3945.2,3.5921638]
[1734320408936,3.35128,3946.4,3945.2,3.5921638]
[1734320409139,3.82559804,3946.4,3945.3,1.0574438]
[1734320409649,0.8173,3946.3,3945.2,3.5921638]
[1734320409795,0.8173,3946.3,3945.1,1.0574438]
[1734320409996,0.8173,3946.0,3945.0,10.1625327]
[1734320410937,2.53416,3946.1,3945.0,10.03598147]
[1734320410938,3.5823863,3945.2,3945.0,10.03598147]
[1734320411099,3.5823863,3945.2,3945.0,7.10919547]
[1734320411100,4.83600677,3945.1,3945.0,7.10919547]
[1734320411298,5.52114859,3945.1,3945.0,5.23175966]
[1734320411502,0.8173,3944.0,3942.6,2.6323981]
[1734320411725,2.07769443,3943.9,3942.3,3.5939738]
[1734320411939,0.8173,3943.5,3942.2,2.53663]
[1734320412235,0.8173,3943.4,3941.9,2.5368]
[1734320412395,2.53597,3943.3,3941.9,2.3868]
[1734320412595,0.8173,3943.2,3941.9,2.3868]
[1734320412834,0.335327,3943.1,3941.9,2.3868]
[1734320413037,0.8173,3943.0,3942.0,2.53677]
[1734320413199,0.8173,3943.0,3941.4,0.08]
[1734320413431,0.8173,3943.0,3941.7,2.53693]
[1734320413634,0.8173,3943.0,3941.8,2.53688]
[1734320413837,0.8173,3943.0,3941.9,0.803]
[1734320414036,0.7597,3943.7,3941.9,0.803]
[1734320414348,0.7597,3943.7,3942.7,2.5363]
[1734320414751,0.7597,3943.7,3941.9,0.803]
[1734320415050,0.7597,3943.7,3942.6,2.53635]
[1734320415236,0.7597,3943.7,3941.9,0.803]
[1734320415237,0.7597,3943.7,3942.7,2.53632]
[1734320415780,0.7597,3943.7,3941.9,0.803]
[1734320415974,0.7597,3943.7,3942.6,2.53638]
[1734320416145,0.7597,3943.7,3942.8,2.53624]
[1734320416338,0.7597,3943.7,3942.5,2.53641]
[1734320416533,0.7597,3943.7,3942.6,2.53639]
[1734320416752,0.7782,3943.6,3942.0,0.28806944]
[1734320417073,2.07769443,3943.7,3941.4,0.8743]
[1734320417074,0.7782,3943.4,3941.9,2.53683]
[1734320417275,0.7782,3943.3,3942.1,2.5367]
[1734320417491,1.109611,3943.3,3942.1,2.5367]
[1734320417852,1.109611,3943.3,3941.4,0.8743]
[1734320418055,2.85589443,3943.3,3941.4,0.8743]
[1734320418576,0.7782,3943.3,3942.5,2.53644]
[1734320418740,0.7782,3943.3,3941.4,0.8743]
[1734320418944,0.7782,3943.3,3942.6,2.53637]
[1734320419245,0.7782,3943.3,3942.8,2.53625]
[1734320419605,0.7782,3943.3,3941.7,2.53697]
[1734320419876,0.7782,3943.3,3942.8,2.53624]
[1734320420445,0.7782,3943.3,3942.9,2.53617]
[1734320420648,0.7782,3943.3,3943.0,2.53609]
[1734320420843,0.7782,3943.3,3943.1,2.53605]
[1734320421062,0.7782,3943.3,3942.4,2.53647]
[1734320421264,0.7782,3943.3,3941.3,4.61488443]
[1734320421265,0.7782,3943.3,3942.2,2.53663]
[1734320421905,0.7782,3943.3,3942.4,2.5365]
[1734320421906,1.109596,3943.3,3942.4,2.5365]
[1734320422108,0.7782,3943.3,3942.4,2.5365]
[1734320422871,0.7782,3943.3,3942.1,2.53666]
[1734320423799,0.7666,3943.2,3941.8,2.53687]
[1734320424006,2.84429443,3942.9,3941.5,2.53705]
[1734320424206,0.7666,3942.8,3941.4,0.08]
[1734320424747,2.07769443,3942.9,3941.4,0.08]
[1734320424748,0.7666,3942.6,3941.4,0.08]
[1734320425089,2.59169783,3942.5,3941.4,0.08]
[1734320425291,2.59169783,3942.5,3940.0,10.0]
[1734320425292,0.7666,3941.4,3940.0,10.0]
[1734320425612,2.07769443,3942.0,3940.0,10.0]
[1734320425613,2.07769443,3940.6,3940.0,10.0]
[1734320425917,0.797,3940.9,3940.0,10.0]
[1734320426116,0.797,3940.7,3940.0,10.0]
[1734320427190,2.07769443,3940.2,3940.0,10.0]
[1734320427415,0.767,3940.1,3940.0,10.0]
[1734320427690,1.26685931,3940.1,3940.0,10.0]
[1734320427890,0.767,3940.1,3940.0,10.0]
[1734320430733,2.53711,3941.5,3940.0,10.0]
[1734320430734,0.7838,3942.0,3940.1,3.29474727]
[1734320430889,0.7838,3942.0,3941.6,2.53697]
[1734320431089,0.7838,3942.0,3941.5,1.54346946]
[1734320431302,0.7838,3942.0,3941.0,0.41914325]
[1734320431506,0.7838,3942.0,3941.8,2.53689]
[1734320431996,0.7838,3942.0,3941.0,0.41914325]
[1734320432202,0.7838,3942.0,3939.0,0.25]
[1734320432203,0.7838,3941.8,3939.8,2.07769443]
[1734320432395,0.7838,3941.7,3939.4,2.07769443]
[1734320432597,0.12789449,3941.2,3939.0,2.07769443]
[1734320432805,0.25,3939.2,3938.1,0.37222658]
[1734320432998,0.25,3939.2,3939.0,2.53868]
[1734320433204,0.7838,3939.6,3939.3,2.5385]
[1734320433515,0.25,3939.9,3939.5,2.53839]
[1734320433718,0.25,3940.1,3939.9,2.53811]
[1734320433719,0.5,3940.1,3939.9,2.53811]
[1734320434956,0.25,3940.1,3939.9,2.53811]
[1734320437118,0.25,3939.9,3939.4,2.84929443]
[1734320437338,0.25,3939.9,3939.7,2.53825]
[1734320437862,0.5,3940.3,3940.0,2.53801]
[1734320438005,0.25,3939.9,3939.5,2.53836]
[1734320438205,0.25,3940.3,3940.1,2.53797]
[1734320438601,2.52,3941.3,3940.2,2.85039443]
[1734320438602,0.25,3941.2,3940.2,2.85039443]
[1734320438838,0.25,3941.3,3940.7,4.61531443]
[1734320439222,0.25,3941.3,3940.7,2.07769443]
[1734320439440,0.25,3941.3,3941.1,2.53732]
[1734320439798,0.25,3941.7,3940.8,2.53755]
[1734320439972,0.5,3941.7,3941.4,2.53715]
[1734320440150,0.25,3941.5,3941.4,2.53715]
[1734320441107,0.25,3941.5,3940.8,2.53755]
[1734320441400,0.25,3940.9,3940.2,0.7727]
[1734320441558,0.25,3940.4,3940.2,2.53792]
[1734320441958,0.25,3940.6,3940.4,2.53776]
[1734320442141,0.25,3940.6,3940.5,2.53771]
[1734320442494,0.5,3940.8,3940.7,2.53762]
[1734320442936,0.5,3940.8,3940.4,2.53776]
[1734320443136,0.5,3940.8,3940.5,2.5377]
[1734320443343,0.5,3940.8,3940.6,2.53766]
[1734320443602,2.52,3941.6,3940.2,2.53789]
[1734320443603,0.5,3940.6,3940.2,2.53789]
[1734320444155,0.25,3941.7,3941.3,2.53721]
[1734320444369,0.25,3941.8,3941.5,2.53709]
[1734320444506,0.25,3941.7,3941.5,2.53709]
[1734320445412,0.25,3941.5,3941.2,2.53725]
[1734320445609,0.25,3941.3,3940.9,2.53743]
[1734320445871,0.25,3941.1,3940.3,0.7731]
[1734320446071,0.25,3941.1,3940.1,2.53795]
[1734320446072,0.25,3941.0,3940.1,2.53795]
[1734320446366,0.25,3940.4,3939.9,0.7731]
[1734320446545,0.25,3940.4,3940.2,2.53792]
[1734320446726,0.25,3942.2,3942.1,2.53668]
[1734320446935,2.78511,3944.6,3941.7,2.53693]
[1734320446936,0.25,3942.0,3941.7,2.53693]
[1734320447511,0.25,3942.0,3941.8,2.53688]
[1734320447868,0.25,3942.2,3942.1,2.53671]
[1734320448004,0.25,3942.5,3942.2,2.53664]
[1734320448373,0.8267,3942.8,3942.2,2.53664]
[1734320448374,0.25,3942.3,3942.2,2.53664]
[1734320448859,0.25,3942.3,3941.4,2.66774365]
[1734320449011,0.25,3942.3,3941.7,2.53691]
[1734320449342,0.25,3942.2,3941.4,2.66774365]
[1734320450029,0.25,3942.2,3942.0,2.53675]
[1734320450232,0.8267,3942.8,3942.2,2.53664]
[1734320450233,0.25,3942.5,3942.2,2.53664]
[1734320450437,0.25,3942.5,3941.4,2.66774365]
[1734320450744,0.25,3942.5,3941.9,2.66774365]
[1734320451124,0.25,3942.5,3942.3,2.53657]
[1734320452152,0.25,3942.6,3942.5,2.53643]
[1734320452728,0.25,3943.0,3942.0,3.32118]
[1734320452969,0.25,3942.7,3942.6,2.53639]
[1734320453257,0.25,3942.9,3942.6,2.53639]
[1734320453445,0.25,3942.7,3942.6,2.53639]
[1734320453849,0.25,3942.7,3942.0,3.32118]
[1734320454046,0.25,3942.7,3942.5,2.53645]
[1734320454245,0.25,3942.9,3942.6,2.53633]
[1734320454448,0.25,3942.9,3942.7,2.53631]
[1734320454669,0.8267,3943.2,3942.9,2.53618]
[1734320454836,0.25,3943.0,3942.9,2.53618]
[1734320455163,0.25,3943.0,3942.1,0.34521437]
[1734320455164,0.25,3943.0,3942.7,2.53631]
[1734320455364,0.25,3942.8,3942.0,0.7844]
[1734320455552,0.25,3942.6,3942.4,2.53652]
[1734320456371,0.25,3942.6,3942.3,2.53657]
[1734320456583,0.25,3942.6,3942.4,2.53652]
[1734320457175,0.25,3942.6,3942.0,0.7844]
[1734320457336,0.25,3942.6,3942.1,2.53666]
[1734320457538,0.8267,3943.2,3941.8,2.53685]
[1734320457539,0.25,3942.3,3941.8,2.53685]
[1734320457740,0.25,3942.1,3941.8,2.53685]
[1734320457937,0.25,3942.1,3941.5,2.53707]
[1734320458141,1.011,3942.3,3941.7,2.53696]
[1734320458540,0.25,3942.1,3941.8,2.5369]
[1734320459001,0.25,3942.1,3941.6,2.53703]
[1734320459382,0.25,3942.1,3941.7,2.53696]
[1734320459755,0.25,3942.1,3941.5,2.53709]
[1734320460580,0.25,3941.6,3940.9,2.66774365]
[1734320460948,0.25,3941.6,3941.1,2.53733]
[1734320461653,0.25,3941.6,3940.9,2.66774365]
[1734320461858,0.25,3941.6,3941.0,2.53742]
[1734320462685,0.25,3941.6,3941.3,2.53717]
[1734320462857,0.25,3941.6,3941.3,2.53722]
[1734320463557,4.10490761,3943.9,3941.5,5.20484365]
[1734320463756,0.7695,3943.9,3942.4,2.53648]
[1734320464067,2.53571,3943.7,3942.1,2.66774365]
[1734320464291,0.7695,3943.5,3942.3,2.53657]
[1734320464510,3.30533,3943.5,3942.0,2.53672]
[1734320464826,0.7695,3943.5,3941.7,0.7761]
[1734320465173,0.7695,3943.5,3942.1,2.53667]
[1734320465375,3.30532,3943.5,3942.2,2.53665]
[1734320465619,3.30532,3943.5,3941.8,2.53691]
[1734320465620,0.330532,3943.4,3941.8,2.53691]
[1734320465796,0.330532,3943.4,3942.3,2.53658]
[1734320466931,0.330532,3943.4,3941.7,0.7761]
[1734320467130,0.7695,3943.5,3942.6,2.53637]
[1734320467440,0.7695,3943.5,3941.7,0.7761]
[1734320467575,0.7695,3943.5,3942.4,2.53652]
[1734320467776,0.7695,3943.5,3941.7,0.7761]
[1734320467777,0.7695,3943.5,3942.5,2.53644]
[1734320468479,0.7695,3943.5,3941.8,2.53691]
[1734320468686,0.330519,3943.4,3942.5,2.53639]
[1734320468911,0.330519,3943.4,3941.7,0.7761]
[1734320468912,0.330519,3943.4,3941.8,2.53691]
[1734320469113,0.330519,3943.4,3941.7,0.7761]
[1734320469273,2.866419,3943.4,3942.1,2.53669]
[1734320469473,0.3635839,3943.3,3942.2,2.53662]
[1734320469701,0.330519,3943.4,3942.2,2.53662]
[1734320469908,0.330519,3943.4,3942.3,2.53658]
[1734320470088,2.866409,3943.4,3942.1,2.53668]
[1734320470304,2.53595,3943.3,3942.1,2.53668]
[1734320470506,2.53595,3943.3,3941.7,0.7761]
[1734320470691,0.3635969,3943.2,3942.0,2.53674]
[1734320470892,0.3635969,3943.2,3941.7,0.7761]
[1734320471227,2.53614,3943.0,3941.6,2.53699]
[1734320471376,0.8155,3943.1,3941.8,2.5369]
[1734320472178,0.8155,3943.1,3941.7,2.09261294]
[1734320472383,0.8155,3943.1,3941.2,0.792]
[1734320472384,0.49960325,3943.0,3941.3,2.09261294]
[1734320472601,0.8155,3942.3,3941.3,2.09261294]
[1734320472804,1.150695,3942.3,3941.3,2.09261294]
[1734320473005,0.8155,3942.3,3941.6,2.53703]
[1734320473318,0.8155,3942.3,3941.4,2.53715]
[1734320473615,0.8155,3942.3,3941.3,2.09261294]
[1734320473922,3.35209,3942.3,3941.1,2.53732]
[1734320474293,0.8155,3942.3,3940.9,2.09261294]
[1734320474495,2.53666,3942.2,3940.9,4.63009294]
[1734320474694,0.335216,3942.1,3941.3,4.62983294]
[1734320475008,0.8155,3942.3,3941.5,2.53709]
[1734320475210,0.8155,3942.3,3941.3,2.09261294]
[1734320475719,2.53665,3942.2,3941.3,2.09261294]
[1734320475904,2.53665,3942.2,3940.9,4.63005294]
[1734320476109,0.335215,3942.1,3940.9,4.63005294]
[1734320476324,2.53682,3942.0,3940.9,2.09261294]
[1734320476533,0.7889,3941.9,3940.9,2.09261294]
[1734320476819,0.7889,3941.9,3940.9,4.63009294]
[1734320477029,0.7889,3941.9,3941.3,2.09261294]
[1734320477196,0.796,3942.4,3941.7,2.09261294]
[1734320478726,0.796,3942.4,3941.4,3.32923]
[1734320479436,0.796,3942.4,3941.5,2.5371]
[1734320479638,0.50678159,3943.1,3942.1,2.09261294]
[1734320479938,0.8067,3942.9,3941.7,2.09261294]
[1734320481341,0.8067,3942.9,3941.7,2.53694]
[1734320482319,0.8067,3942.9,3941.5,2.53708]
[1734320482518,0.63694916,3943.0,3941.2,2.53728]
[1734320482519,0.8203,3942.4,3941.2,2.53728]
[1734320482721,3.35683,3942.4,3941.2,2.53728]
[1734320482931,0.335683,3942.3,3941.2,2.53728]
[1734320483249,2.53674,3942.1,3940.8,2.53753]
[1734320483414,0.8203,3942.0,3940.8,2.53753]
[1734320484220,0.8203,3942.0,3940.9,2.53746]
[1734320484420,1.1895723,3942.0,3940.9,2.53746]
[1734320484613,1.1895723,3942.0,3941.0,2.5374]
[1734320484836,0.8203,3942.0,3941.0,2.5374]
[1734320485624,0.8203,3942.0,3940.6,2.09261294]
[1734320485830,0.8203,3942.0,3941.0,2.09261294]
[1734320486154,0.8203,3942.0,3941.0,4.63003294]
[1734320486376,0.51973601,3942.3,3941.5,2.53709]